[Event "Early-Titled-Tuesday-Blitz-March-05-2024"]
[Site "Chess.com"]
[Date "2024.03.05"]
[Round "3"]
[White "Hikaru"]
[Black "vovachesss"]
[Result "1/2-1/2"]
[WhiteElo "3274"]
[BlackElo "2799"]
[TimeControl "180+1"]
[EndTime "8:33:29 PST"]
[Termination "Game drawn by repetition"]

1. Nf3 {[%clk 0:03:00.9]} 1... d5 {[%clk 0:02:59.5]} 2. e3 {[%clk 0:03:00.4]}
2... Nf6 {[%clk 0:02:59]} 3. b3 {[%clk 0:03:00.5]} 3... Bg4 {[%clk 0:02:51.3]}
4. h3 {[%clk 0:02:55.9]} 4... Bxf3 {[%clk 0:02:49.7]} 5. Qxf3 {[%clk 0:02:56.2]}
5... Nbd7 {[%clk 0:02:50.3]} 6. Bb2 {[%clk 0:02:56.8]} 6... e5 {[%clk
0:02:50.2]} 7. d3 {[%clk 0:02:57.4]} 7... c6 {[%clk 0:02:50.2]} 8. g3 {[%clk
0:02:57.6]} 8... Bd6 {[%clk 0:02:50.7]} 9. Bg2 {[%clk 0:02:57.9]} 9... Qe7
{[%clk 0:02:51.4]} 10. Qe2 {[%clk 0:02:57.9]} 10... O-O {[%clk 0:02:51.8]} 11.
a3 {[%clk 0:02:57.7]} 11... a5 {[%clk 0:02:51.7]} 12. O-O {[%clk 0:02:56.9]}
12... Rfe8 {[%clk 0:02:51.2]} 13. Nd2 {[%clk 0:02:56.9]} 13... Rad8 {[%clk
0:02:51.7]} 14. c4 {[%clk 0:02:57.3]} 14... e4 {[%clk 0:02:36.6]} 15. cxd5
{[%clk 0:02:57]} 15... exd3 {[%clk 0:02:14.6]} 16. Qxd3 {[%clk 0:02:57.9]} 16...
Ne5 {[%clk 0:02:09.8]} 17. Qc2 {[%clk 0:02:25.7]} 17... Nxd5 {[%clk 0:02:08.3]}
18. Ne4 {[%clk 0:02:25.5]} 18... Bb8 {[%clk 0:02:05.3]} 19. Bd4 {[%clk
0:02:21.1]} 19... Nd7 {[%clk 0:01:58.5]} 20. Rad1 {[%clk 0:02:15.9]} 20... Be5
{[%clk 0:01:57.4]} 21. Bxe5 {[%clk 0:02:12.3]} 21... Nxe5 {[%clk 0:01:52.3]} 22.
Qc1 {[%clk 0:01:48.5]} 22... Nf6 {[%clk 0:01:36.3]} 23. Nxf6+ {[%clk 0:01:37.7]}
23... Qxf6 {[%clk 0:01:36.3]} 24. Qc5 {[%clk 0:01:38]} 24... Nf3+ {[%clk
0:01:24.4]} 25. Bxf3 {[%clk 0:01:36.1]} 25... Qxf3 {[%clk 0:01:25.3]} 26. Rxd8
{[%clk 0:01:34.7]} 26... Rxd8 {[%clk 0:01:26.2]} 27. Qxa5 {[%clk 0:01:35]} 27...
Qd5 {[%clk 0:00:51.9]} 28. Qb6 {[%clk 0:01:05.7]} 28... Rd7 {[%clk 0:00:52.2]}
29. a4 {[%clk 0:00:58]} 29... h5 {[%clk 0:00:51.8]} 30. a5 {[%clk 0:00:58.6]}
30... h4 {[%clk 0:00:50.6]} 31. a6 {[%clk 0:00:20.6]} 31... bxa6 {[%clk
0:00:47.7]} 32. Qxa6 {[%clk 0:00:20.8]} 32... hxg3 {[%clk 0:00:32.1]} 33. fxg3
{[%clk 0:00:20.7]} 33... Qe6 {[%clk 0:00:33]} 34. Qe2 {[%clk 0:00:14.8]} 34...
Qxh3 {[%clk 0:00:32.4]} 35. Qf3 {[%clk 0:00:15.5]} 35... Qe6 {[%clk 0:00:31.7]}
36. Ra1 {[%clk 0:00:16]} 36... Rd5 {[%clk 0:00:17.9]} 37. e4 {[%clk 0:00:12.5]}
37... Re5 {[%clk 0:00:15.6]} 38. Ra8+ {[%clk 0:00:12.6]} 38... Kh7 {[%clk
0:00:16]} 39. Ra4 {[%clk 0:00:12.7]} 39... Rc5 {[%clk 0:00:13.5]} 40. Kf2 {[%clk
0:00:08.3]} 40... Rc2+ {[%clk 0:00:13.3]} 41. Ke1 {[%clk 0:00:08.8]} 41... Qe5
{[%clk 0:00:12.2]} 42. Qf5+ {[%clk 0:00:07.9]} 42... Qxf5 {[%clk 0:00:11.8]} 43.
exf5 {[%clk 0:00:08.8]} 43... Rc3 {[%clk 0:00:12.2]} 44. Kf2 {[%clk 0:00:08.6]}
44... Rxb3 {[%clk 0:00:12.3]} 45. Ra7 {[%clk 0:00:09]} 45... f6 {[%clk
0:00:11.5]} 46. Rc7 {[%clk 0:00:09.7]} 46... Rc3 {[%clk 0:00:12]} 47. g4 {[%clk
0:00:09.9]} 47... Kh6 {[%clk 0:00:12.5]} 48. Kg2 {[%clk 0:00:10]} 48... c5
{[%clk 0:00:12]} 49. Kf2 {[%clk 0:00:10.7]} 49... c4 {[%clk 0:00:11.1]} 50. Ke2
{[%clk 0:00:10.1]} 50... Rc2+ {[%clk 0:00:09.3]} 51. Kf3 {[%clk 0:00:10.3]}
51... c3 {[%clk 0:00:08.7]} 52. Rc8 {[%clk 0:00:10.9]} 52... Kh7 {[%clk
0:00:08.5]} 53. Kg3 {[%clk 0:00:08.7]} 53... Rc1 {[%clk 0:00:07.7]} 54. Rc7
{[%clk 0:00:05.8]} 54... Kh6 {[%clk 0:00:06.6]} 55. Kh2 {[%clk 0:00:06.1]} 55...
c2 {[%clk 0:00:03.3]} 56. Kg2 {[%clk 0:00:06.7]} 56... g6 {[%clk 0:00:03.4]} 57.
fxg6 {[%clk 0:00:06.7]} 57... Kxg6 {[%clk 0:00:04.3]} 58. Rc5 {[%clk 0:00:07.2]}
58... Kh6 {[%clk 0:00:04.5]} 59. g5+ {[%clk 0:00:07.3]} 59... fxg5 {[%clk
0:00:04.4]} 60. Rc8 {[%clk 0:00:07.7]} 60... Kh5 {[%clk 0:00:04.6]} 61. Rc7
{[%clk 0:00:08.4]} 61... Kg4 {[%clk 0:00:04.7]} 62. Rc8 {[%clk 0:00:09.2]} 62...
Kh4 {[%clk 0:00:05]} 63. Rc7 {[%clk 0:00:09.9]} 63... g4 {[%clk 0:00:04.8]} 64.
Rh7+ {[%clk 0:00:10]} 64... Kg5 {[%clk 0:00:05.3]} 65. Rc7 {[%clk 0:00:10.9]}
65... Kf4 {[%clk 0:00:05.7]} 66. Rc8 {[%clk 0:00:11.6]} 66... Ke3 {[%clk
0:00:06]} 67. Re8+ {[%clk 0:00:12.1]} 67... Kd3 {[%clk 0:00:06.4]} 68. Rd8+
{[%clk 0:00:12.7]} 68... Kc3 {[%clk 0:00:06.8]} 69. Rc8+ {[%clk 0:00:13.5]}
69... Kb3 {[%clk 0:00:07.1]} 70. Rb8+ {[%clk 0:00:14.2]} 70... Kc4 {[%clk
0:00:07.1]} 71. Rc8+ {[%clk 0:00:14.3]} 71... Kd5 {[%clk 0:00:07.5]} 72. Rd8+
{[%clk 0:00:14.7]} 72... Kc6 {[%clk 0:00:07.6]} 73. Rc8+ {[%clk 0:00:15.6]}
73... Kd7 {[%clk 0:00:08]} 74. Rc3 {[%clk 0:00:16]} 74... Ke6 {[%clk 0:00:07.2]}
75. Kh2 {[%clk 0:00:15.3]} 75... Ke5 {[%clk 0:00:07.3]} 76. Rc8 {[%clk
0:00:14.7]} 76... g3+ {[%clk 0:00:07.3]} 77. Kg2 {[%clk 0:00:15]} 77... Ke4
{[%clk 0:00:07.4]} 78. Re8+ {[%clk 0:00:15.3]} 78... Kd5 {[%clk 0:00:06.2]} 79.
Rd8+ {[%clk 0:00:15.8]} 79... Ke6 {[%clk 0:00:06.5]} 80. Rc8 {[%clk 0:00:16.7]}
80... Kd7 {[%clk 0:00:06.8]} 81. Rc3 {[%clk 0:00:17.1]} 81... Kd6 {[%clk
0:00:07]} 82. Rc4 {[%clk 0:00:17.8]} 82... Kd5 {[%clk 0:00:06.7]} 83. Rc8 {[%clk
0:00:18.4]} 83... Kd6 {[%clk 0:00:06.2]} 84. Rc3 {[%clk 0:00:17.6]} 84... Kd5
{[%clk 0:00:05.1]} 85. Rc8 {[%clk 0:00:17.8]} 85... Kd6 {[%clk 0:00:05.3]} 86.
Rc3 {[%clk 0:00:18]} 86... Kd5 {[%clk 0:00:05.5]} 87. Rc7 {[%clk 0:00:18.2]}
87... Kd6 {[%clk 0:00:05.6]} 88. Rc8 {[%clk 0:00:18.8]} 88... Kd7 {[%clk
0:00:05.9]} 89. Rc3 {[%clk 0:00:19]} 89... Kd6 {[%clk 0:00:06.3]} 90. Rc4 {[%clk
0:00:19]} 90... Kd5 {[%clk 0:00:06.6]} 91. Rc7 {[%clk 0:00:18.6]} 91... Ke4
{[%clk 0:00:07.3]} 92. Rc8 {[%clk 0:00:18.1]} 92... Kd3 {[%clk 0:00:06.6]} 93.
Rd8+ {[%clk 0:00:18.6]} 93... Kc3 {[%clk 0:00:07.1]} 94. Rc8+ {[%clk 0:00:19.3]}
94... Kb3 {[%clk 0:00:07.6]} 95. Rb8+ {[%clk 0:00:20]} 95... Ka4 {[%clk
0:00:08.1]} 96. Rc8 {[%clk 0:00:20.7]} 96... Kb5 {[%clk 0:00:08]} 97. Rb8+
{[%clk 0:00:21.2]} 97... Kc4 {[%clk 0:00:08.4]} 98. Rc8+ {[%clk 0:00:22.1]}
98... Kd3 {[%clk 0:00:08.8]} 99. Rd8+ {[%clk 0:00:22.7]} 99... Kc3 {[%clk
0:00:09.1]} 100. Rc8+ {[%clk 0:00:23.6]} 100... Kd4 {[%clk 0:00:09.5]} 101. Rd8+
{[%clk 0:00:24.2]} 101... Kc5 {[%clk 0:00:09.9]} 102. Rc8+ {[%clk 0:00:25.1]}
102... Kd6 {[%clk 0:00:10.3]} 1/2-1/2

[Event "Early-Titled-Tuesday-Blitz-March-05-2024"]
[Site "Chess.com"]
[Date "2024.03.05"]
[Round "3"]
[White "GMG"]
[Black "ChessLover0108"]
[Result "1-0"]
[WhiteElo "2723"]
[BlackElo "2952"]
[TimeControl "180+1"]
[EndTime "8:33:30 PST"]
[Termination "GMG won by resignation"]

1. d4 {[%clk 0:03:00.9]} 1... Nf6 {[%clk 0:02:58.9]} 2. c4 {[%clk 0:03:00.1]}
2... g6 {[%clk 0:02:59]} 3. Nf3 {[%clk 0:02:58.2]} 3... Bg7 {[%clk 0:02:59.9]}
4. g3 {[%clk 0:02:58.6]} 4... c5 {[%clk 0:02:55.6]} 5. Bg2 {[%clk 0:02:56.8]}
5... Qa5+ {[%clk 0:02:55.8]} 6. Nc3 {[%clk 0:02:54]} 6... Ne4 {[%clk 0:02:55.7]}
7. Bd2 {[%clk 0:02:53.8]} 7... Nxd2 {[%clk 0:02:53]} 8. Qxd2 {[%clk 0:02:54.7]}
8... Nc6 {[%clk 0:02:44.6]} 9. e3 {[%clk 0:02:47.1]} 9... d6 {[%clk 0:02:41.1]}
10. h3 {[%clk 0:02:16]} 10... O-O {[%clk 0:02:14.7]} 11. O-O {[%clk 0:02:15]}
11... Rd8 {[%clk 0:02:15.2]} 12. Rfd1 {[%clk 0:02:10.5]} 12... Rb8 {[%clk
0:01:56.1]} 13. Nd5 {[%clk 0:01:53.1]} 13... Qxd2 {[%clk 0:01:44.7]} 14. Rxd2
{[%clk 0:01:54]} 14... b6 {[%clk 0:01:31.6]} 15. Rc1 {[%clk 0:01:37.1]} 15...
Bb7 {[%clk 0:01:25.9]} 16. b3 {[%clk 0:01:33.4]} 16... Kf8 {[%clk 0:01:13.9]}
17. Rcd1 {[%clk 0:01:32]} 17... Rbc8 {[%clk 0:01:03.7]} 18. Nc3 {[%clk
0:01:29.3]} 18... e6 {[%clk 0:00:47.9]} 19. Ne2 {[%clk 0:01:17.8]} 19... Ke7
{[%clk 0:00:46]} 20. Nf4 {[%clk 0:01:13.1]} 20... Nb4 {[%clk 0:00:39.8]} 21. a3
{[%clk 0:01:05.1]} 21... Na6 {[%clk 0:00:17.4]} 22. Ng5 {[%clk 0:00:55]} 22...
Bxg2 {[%clk 0:00:16.4]} 23. Kxg2 {[%clk 0:00:55.7]} 23... cxd4 {[%clk
0:00:17.3]} 24. exd4 {[%clk 0:00:55.4]} 24... h6 {[%clk 0:00:18.2]} 25. Nf3
{[%clk 0:00:52.7]} 25... Nc7 {[%clk 0:00:14]} 26. b4 {[%clk 0:00:49.1]} 26... a5
{[%clk 0:00:07.5]} 27. Nd3 {[%clk 0:00:24.7]} 27... axb4 {[%clk 0:00:06.6]} 28.
axb4 {[%clk 0:00:25.6]} 28... d5 {[%clk 0:00:04.3]} 29. c5 {[%clk 0:00:25.2]}
29... Nb5 {[%clk 0:00:04.9]} 30. Nde5 {[%clk 0:00:19.5]} 30... bxc5 {[%clk
0:00:04.1]} 31. bxc5 {[%clk 0:00:19.1]} 31... Rc7 {[%clk 0:00:04.2]} 32. h4
{[%clk 0:00:18.4]} 32... Ra8 {[%clk 0:00:02.4]} 33. Re1 {[%clk 0:00:17.5]} 33...
Nc3 {[%clk 0:00:02.8]} 34. Re3 {[%clk 0:00:17]} 34... Ne4 {[%clk 0:00:02.9]} 35.
Rb2 {[%clk 0:00:16]} 35... Ra4 {[%clk 0:00:02.6]} 36. Rb6 {[%clk 0:00:14.9]}
36... Bxe5 {[%clk 0:00:03]} 37. Nxe5 {[%clk 0:00:14.7]} 37... Kf6 {[%clk
0:00:01.7]} 38. f3 {[%clk 0:00:11.8]} 38... Ra2+ {[%clk 0:00:01]} 39. Kg1 {[%clk
0:00:08.7]} 39... Nd2 {[%clk 0:00:01.9]} 40. Ng4+ {[%clk 0:00:08.1]} 40... Kg7
{[%clk 0:00:02.1]} 41. Rb8 {[%clk 0:00:03.5]} 41... Nc4 {[%clk 0:00:02.4]} 42.
Reb3 {[%clk 0:00:02.9]} 42... Rca7 {[%clk 0:00:02.3]} 43. Rb1 {[%clk 0:00:02.8]}
43... Ra1 {[%clk 0:00:02.7]} 44. Rxa1 {[%clk 0:00:02.1]} 44... Rxa1+ {[%clk
0:00:03.6]} 45. Kg2 {[%clk 0:00:02.5]} 45... Rc1 {[%clk 0:00:04.5]} 46. Rb7
{[%clk 0:00:01.8]} 46... h5 {[%clk 0:00:04.4]} 47. Nf2 {[%clk 0:00:01.6]} 47...
Ne3+ {[%clk 0:00:04.4]} 48. Kh2 {[%clk 0:00:02.1]} 48... Rc2 {[%clk 0:00:03.6]}
49. Kg1 {[%clk 0:00:02.3]} 49... Rc1+ {[%clk 0:00:03.9]} 50. Kh2 {[%clk
0:00:02.7]} 50... Rf1 {[%clk 0:00:04.7]} 51. Nh3 {[%clk 0:00:02]} 51... Rxf3
{[%clk 0:00:04.8]} 52. Ng5 {[%clk 0:00:01.9]} 52... Rf2+ {[%clk 0:00:05.5]} 53.
Kg1 {[%clk 0:00:01.8]} 53... Rf1+ {[%clk 0:00:06]} 54. Kh2 {[%clk 0:00:02]}
54... Kg8 {[%clk 0:00:03.7]} 55. c6 {[%clk 0:00:01.9]} 55... Rc1 {[%clk
0:00:03.9]} 56. c7 {[%clk 0:00:02.4]} 56... Kg7 {[%clk 0:00:02.7]} 57. Nxe6+
{[%clk 0:00:02.8]} 57... Kf6 {[%clk 0:00:03.3]} 58. Nc5 {[%clk 0:00:03.2]} 58...
Ng4+ {[%clk 0:00:01.4]} 59. Kg2 {[%clk 0:00:03.5]} 59... Rc2+ {[%clk 0:00:01.8]}
60. Kf1 {[%clk 0:00:03.5]} 60... Rc1+ {[%clk 0:00:02.5]} 61. Ke2 {[%clk
0:00:03.8]} 61... Rc2+ {[%clk 0:00:03.4]} 62. Kd1 {[%clk 0:00:04.2]} 62... Ne3+
{[%clk 0:00:03.5]} 63. Ke1 {[%clk 0:00:04.7]} 63... Ng2+ {[%clk 0:00:03.4]} 64.
Kf1 {[%clk 0:00:04.7]} 64... Ne3+ {[%clk 0:00:03.9]} 65. Kg1 {[%clk 0:00:05.1]}
65... Rc1+ {[%clk 0:00:01.8]} 66. Kf2 {[%clk 0:00:04.2]} 66... Ng4+ {[%clk
0:00:02.7]} 67. Kf3 {[%clk 0:00:04.6]} 67... Rc3+ {[%clk 0:00:02]} 68. Ke2
{[%clk 0:00:04.3]} 68... Rc2+ {[%clk 0:00:02.3]} 69. Kd3 {[%clk 0:00:04.8]}
69... Rg2 {[%clk 0:00:02.5]} 70. c8=Q {[%clk 0:00:05.1]} 70... Rxg3+ {[%clk
0:00:03.4]} 71. Kd2 {[%clk 0:00:05.5]} 71... Rg2+ {[%clk 0:00:03.7]} 72. Kc1
{[%clk 0:00:06]} 72... Rg1+ {[%clk 0:00:04]} 73. Kb2 {[%clk 0:00:06.5]} 73...
Rg2+ {[%clk 0:00:04.9]} 74. Ka3 {[%clk 0:00:06.9]} 74... Ne3 {[%clk 0:00:05.5]}
75. Qd8+ {[%clk 0:00:06.9]} 75... Kf5 {[%clk 0:00:04.7]} 76. Qc8+ {[%clk
0:00:06.4]} 76... Kf4 {[%clk 0:00:04.9]} 77. Rxf7+ {[%clk 0:00:06.8]} 77... Kg3
{[%clk 0:00:05.5]} 78. Ne4+ {[%clk 0:00:06.8]} 78... dxe4 {[%clk 0:00:05.6]} 79.
Qc3 {[%clk 0:00:06.9]} 79... Re2 {[%clk 0:00:04.4]} 80. d5 {[%clk 0:00:07.3]}
80... Kg4 {[%clk 0:00:03.1]} 81. d6 {[%clk 0:00:07.6]} 81... Nc2+ {[%clk
0:00:03.3]} 82. Kb3 {[%clk 0:00:07.3]} 82... Ne3 {[%clk 0:00:01.5]} 83. d7
{[%clk 0:00:07.3]} 83... Nd5 {[%clk 0:00:02.4]} 84. Qc4 {[%clk 0:00:06.7]} 84...
Re3+ {[%clk 0:00:02.1]} 85. Kb2 {[%clk 0:00:07.1]} 85... Nb6 {[%clk 0:00:01.4]}
86. Qe6+ {[%clk 0:00:06.6]} 86... Kg3 {[%clk 0:00:02]} 87. Qxb6 {[%clk
0:00:07.1]} 1-0

[Event "Early-Titled-Tuesday-Blitz-March-05-2024"]
[Site "Chess.com"]
[Date "2024.03.05"]
[Round "3"]
[White "FairChess_on_YouTube"]
[Black "Evgeny81"]
[Result "1/2-1/2"]
[WhiteElo "3100"]
[BlackElo "2772"]
[TimeControl "180+1"]
[EndTime "8:33:31 PST"]
[Termination "Game drawn by repetition"]

1. Nf3 {[%clk 0:03:00.9]} 1... d5 {[%clk 0:02:59.8]} 2. d4 {[%clk 0:03:00.7]}
2... Nf6 {[%clk 0:02:58.6]} 3. c4 {[%clk 0:03:00.7]} 3... c6 {[%clk 0:02:58.3]}
4. Qc2 {[%clk 0:02:59]} 4... g6 {[%clk 0:02:53.6]} 5. cxd5 {[%clk 0:02:58.3]}
5... cxd5 {[%clk 0:02:53.3]} 6. Bf4 {[%clk 0:02:58.2]} 6... Nc6 {[%clk
0:02:52.4]} 7. Nc3 {[%clk 0:02:56.5]} 7... a6 {[%clk 0:02:50.6]} 8. e3 {[%clk
0:02:56.3]} 8... Bg7 {[%clk 0:02:48.5]} 9. h3 {[%clk 0:02:52.8]} 9... O-O {[%clk
0:02:47.2]} 10. Be2 {[%clk 0:02:52.4]} 10... Bf5 {[%clk 0:02:45.2]} 11. Qb3
{[%clk 0:02:51.8]} 11... b5 {[%clk 0:02:42.9]} 12. O-O {[%clk 0:02:48.3]} 12...
Na5 {[%clk 0:02:41.1]} 13. Qb4 {[%clk 0:02:40.9]} 13... Nc6 {[%clk 0:02:40.8]}
14. Qb3 {[%clk 0:02:37.5]} 14... Na5 {[%clk 0:02:40.7]} 15. Qd1 {[%clk
0:02:31.5]} 15... Rc8 {[%clk 0:02:39.9]} 16. Rc1 {[%clk 0:02:27.3]} 16... Ne4
{[%clk 0:02:26.4]} 17. Nxe4 {[%clk 0:02:24]} 17... Bxe4 {[%clk 0:02:27.3]} 18.
b3 {[%clk 0:02:08.3]} 18... Nc6 {[%clk 0:02:04.4]} 19. Qd2 {[%clk 0:02:02.5]}
19... Bxf3 {[%clk 0:01:46]} 20. Bxf3 {[%clk 0:02:02.3]} 20... e6 {[%clk
0:01:43.1]} 21. Rc5 {[%clk 0:01:44.3]} 21... Ne7 {[%clk 0:01:11.9]} 22. Rfc1
{[%clk 0:01:42]} 22... Rxc5 {[%clk 0:01:08]} 23. Rxc5 {[%clk 0:01:42.9]} 23...
Qb6 {[%clk 0:01:03.8]} 24. Qc1 {[%clk 0:01:16.3]} 24... Re8 {[%clk 0:00:58.7]}
25. Bc7 {[%clk 0:01:11.3]} 25... Qb7 {[%clk 0:00:57.5]} 26. Ba5 {[%clk
0:01:00.3]} 26... Rc8 {[%clk 0:00:54.1]} 27. Be2 {[%clk 0:00:54.5]} 27... Bf8
{[%clk 0:00:51.5]} 28. Rxc8 {[%clk 0:00:42.5]} 28... Qxc8 {[%clk 0:00:51.1]} 29.
Qxc8 {[%clk 0:00:41.8]} 29... Nxc8 {[%clk 0:00:52]} 30. a4 {[%clk 0:00:41.9]}
30... Nd6 {[%clk 0:00:45.1]} 31. Kf1 {[%clk 0:00:38.8]} 31... Be7 {[%clk
0:00:42.9]} 32. Ke1 {[%clk 0:00:34.4]} 32... Kf8 {[%clk 0:00:42.5]} 33. Bb4
{[%clk 0:00:31.8]} 33... Ke8 {[%clk 0:00:41.1]} 34. Bxd6 {[%clk 0:00:22.1]}
34... Bxd6 {[%clk 0:00:41.1]} 35. axb5 {[%clk 0:00:22.8]} 35... axb5 {[%clk
0:00:38.8]} 36. Bxb5+ {[%clk 0:00:23.7]} 36... Ke7 {[%clk 0:00:39]} 37. f4
{[%clk 0:00:23.2]} 37... f5 {[%clk 0:00:31.3]} 38. g4 {[%clk 0:00:20.5]} 38...
Kf6 {[%clk 0:00:26]} 39. Ke2 {[%clk 0:00:14]} 39... Bb4 {[%clk 0:00:19.1]} 40.
Kf3 {[%clk 0:00:13.2]} 40... Bd2 {[%clk 0:00:17.6]} 41. Bd7 {[%clk 0:00:13.2]}
41... Bb4 {[%clk 0:00:17.5]} 42. Bc8 {[%clk 0:00:13.5]} 42... Ke7 {[%clk
0:00:17.5]} 43. Ke2 {[%clk 0:00:13.1]} 43... Kf6 {[%clk 0:00:17.3]} 44. Bd7
{[%clk 0:00:13.2]} 44... Ke7 {[%clk 0:00:17.5]} 45. Bb5 {[%clk 0:00:13.5]} 45...
Kf6 {[%clk 0:00:17.6]} 46. Kf3 {[%clk 0:00:12]} 46... Ke7 {[%clk 0:00:17.8]} 47.
Bd3 {[%clk 0:00:11.9]} 47... Kf6 {[%clk 0:00:17.7]} 48. h4 {[%clk 0:00:12.6]}
48... Be1 {[%clk 0:00:13.4]} 49. h5 {[%clk 0:00:08.9]} 49... Bb4 {[%clk
0:00:12.7]} 50. g5+ {[%clk 0:00:06.5]} 50... Ke7 {[%clk 0:00:12.6]} 51. h6
{[%clk 0:00:07.1]} 51... Kf7 {[%clk 0:00:11.1]} 52. Bb5 {[%clk 0:00:07.5]} 52...
Ke7 {[%clk 0:00:11.2]} 53. Ke2 {[%clk 0:00:08.1]} 53... Kf7 {[%clk 0:00:11.4]}
54. Kd3 {[%clk 0:00:08.7]} 54... Ke7 {[%clk 0:00:11.8]} 55. Ke2 {[%clk 0:00:09]}
55... Kf7 {[%clk 0:00:12.1]} 56. Bd3 {[%clk 0:00:09.6]} 56... Ke7 {[%clk
0:00:12.4]} 57. Kf3 {[%clk 0:00:10.2]} 57... Kf7 {[%clk 0:00:12.8]} 58. Be2
{[%clk 0:00:09.9]} 58... Ke7 {[%clk 0:00:13.1]} 59. Kf2 {[%clk 0:00:10.5]} 59...
Kf7 {[%clk 0:00:13.4]} 60. Bf3 {[%clk 0:00:11.3]} 60... Ke7 {[%clk 0:00:13.6]}
61. Ke2 {[%clk 0:00:11.9]} 61... Kf7 {[%clk 0:00:13.8]} 62. Kd3 {[%clk
0:00:12.6]} 62... Ke7 {[%clk 0:00:14]} 63. Bh5 {[%clk 0:00:10.5]} 63... Kf7
{[%clk 0:00:12.3]} 64. Be2 {[%clk 0:00:10]} 64... Ke7 {[%clk 0:00:12.4]} 65. Kc2
{[%clk 0:00:10]} 65... Kf7 {[%clk 0:00:12.4]} 66. Ba6 {[%clk 0:00:09.4]} 66...
Ke7 {[%clk 0:00:12.4]} 67. Bb7 {[%clk 0:00:10]} 67... Kf7 {[%clk 0:00:12.6]} 68.
Bc6 {[%clk 0:00:10.7]} 68... Ke7 {[%clk 0:00:12.9]} 69. Kd3 {[%clk 0:00:11.3]}
69... Kf7 {[%clk 0:00:13.1]} 70. Ke2 {[%clk 0:00:12]} 70... Ke7 {[%clk
0:00:13.3]} 71. Kf3 {[%clk 0:00:12.6]} 71... Kf7 {[%clk 0:00:13.6]} 72. Bb5
{[%clk 0:00:13.3]} 72... Ke7 {[%clk 0:00:14]} 73. Bf1 {[%clk 0:00:14]} 73... Kf7
{[%clk 0:00:14.3]} 74. Bg2 {[%clk 0:00:14.9]} 74... Ke7 {[%clk 0:00:14.6]} 75.
Ke2 {[%clk 0:00:15.8]} 75... Kf7 {[%clk 0:00:14.8]} 76. Kd3 {[%clk 0:00:16.7]}
76... Ke7 {[%clk 0:00:15]} 77. Bf3 {[%clk 0:00:09.9]} 77... Kf7 {[%clk
0:00:15.2]} 78. Be2 {[%clk 0:00:10.4]} 78... Ke7 {[%clk 0:00:15.3]} 79. Bh5
{[%clk 0:00:11.1]} 79... Kf7 {[%clk 0:00:15.3]} 80. Bd1 {[%clk 0:00:11.2]} 80...
Ke7 {[%clk 0:00:13.6]} 81. Bc2 {[%clk 0:00:11.9]} 81... Kf7 {[%clk 0:00:13.2]}
82. Ke2 {[%clk 0:00:12.8]} 82... Ke7 {[%clk 0:00:12.4]} 83. Bb1 {[%clk
0:00:13.7]} 83... Kf7 {[%clk 0:00:12.4]} 84. Ba2 {[%clk 0:00:14.6]} 84... Ke7
{[%clk 0:00:12.6]} 85. Bb1 {[%clk 0:00:15.3]} 85... Kf7 {[%clk 0:00:12.9]} 86.
Bd3 {[%clk 0:00:15.7]} 86... Ke7 {[%clk 0:00:13.1]} 87. Kf2 {[%clk 0:00:11.6]}
87... Kf7 {[%clk 0:00:13.1]} 88. Bf1 {[%clk 0:00:12.5]} 88... Ke7 {[%clk
0:00:13.1]} 89. Bg2 {[%clk 0:00:13.3]} 89... Kf7 {[%clk 0:00:13.4]} 90. Bf3
{[%clk 0:00:13.8]} 90... Ke7 {[%clk 0:00:13.7]} 91. Bh5 {[%clk 0:00:14.5]} 91...
Kf7 {[%clk 0:00:09.1]} 92. Be2 {[%clk 0:00:14.3]} 92... Ke7 {[%clk 0:00:09.2]}
93. Bd3 {[%clk 0:00:14.9]} 93... Kf7 {[%clk 0:00:09.6]} 94. Bc2 {[%clk
0:00:15.4]} 94... Ke7 {[%clk 0:00:10]} 95. Ke2 {[%clk 0:00:16]} 95... Kf7 {[%clk
0:00:10.3]} 96. Bd3 {[%clk 0:00:16.8]} 1/2-1/2